[Event "8th Montevideo Open 2025"]
[Site "Montevideo"]
[Date "2025.02.08"]
[Round "8.7"]
[White "Komarov, Leonid"]
[Black "Milat, Marcel"]
[Result "1/2-1/2"]
[Annotator "RC"]
[ECO "A70"]
[WhiteElo "1956"]
[BlackElo "2190"]
[PlyCount "38"]
[EventDate "2025.02.01"]
[EventType "swiss"]
[EventCountry "URU"]
[SourceTitle "playchess.com"]
[Source "ChessBase"]
[SourceQuality "1"]
[TimeControl "5400+30"]

1. d4 {[%emt 0:02:23]} Nf6 {[%emt 0:00:42]} 2. c4 {[%emt 0:00:05]} e6 {[%emt 0:02:33]} 3. Nf3 {[%emt 0:00:30]} c5 {[%emt 0:00:17]} 4. d5 {[%emt 0:00:44]} exd5 {[%emt 0:00:09]} 5. cxd5 {[%emt 0:00:02]} d6 {[%emt 0:00:07]} 6. Nc3 {[%emt 0:00:12]} g6 {[%emt 0:00:10]} 7. e4 {[%emt 0:00:14]} Bg7 {[%emt 0:00:09]} 8. Bd3 {[%emt 0:00:40]} O-O {[%emt 0:00:11]} 9. O-O {[%emt 0:00:23]} Bg4 {[%emt 0:02:14]} 10. Bf4 {[%emt 0:02:57]} Nh5 {[%emt 0:01:30]} 11. Be3 {[%emt 0:00:19]} a6 {[%emt 0:02:35]} 12. h3 {[%emt 0:02:47]} Bxf3 {[%emt 0:00:10]} 13. Qxf3 {[%emt 0:00:02]} Nd7 {[%emt 0:00:39]} 14. a4 {[%emt 0:00:56]} Ne5 {[%emt 0:00:43]} 15. Qd1 {[%emt 0:00:19]} f5 {[%emt 0:24:47]} 16. exf5 {[%emt 0:07:29]} Nxd3 {[%emt 0:00:08]} 17. Qxd3 {[%emt 0:00:24]} gxf5 {[%emt 0:00:24]} 18. Bd2 {[%emt 0:03:46]} Qh4 {[%emt 0:11:46]} 19. Rae1 {[%emt 0:04:30]} Be5 {[%emt 0:00:54]} 1/2-1/2

[Event "8th Montevideo Open 2025"]
[Site "Montevideo"]
[Date "2025.02.08"]
[Round "8.8"]
[White "Carbone, Diego"]
[Black "Errazola, Mauricio"]
[Result "1-0"]
[Annotator "RC"]
[ECO "E20"]
[WhiteElo "2216"]
[BlackElo "1891"]
[PlyCount "69"]
[EventDate "2025.02.01"]
[EventType "swiss"]
[EventCountry "URU"]
[SourceTitle "playchess.com"]
[Source "ChessBase"]
[SourceQuality "1"]
[TimeControl "5400+30"]

1. d4 {[%emt 0:00:02]} d5 {[%emt 0:00:33]} 2. c4 {[%emt 0:00:34]} e6 {[%emt 0:00:10]} 3. Nf3 {[%emt 0:00:17]} Nf6 {[%emt 0:00:05]} 4. g3 {[%emt 0:00:39]} Bb4+ {[%emt 0:01:10]} 5. Nc3 {[%emt 0:00:26]} O-O {[%emt 0:01:09]} 6. Bg2 {[%emt 0:00:06]} Ne4 {[%emt 0:06:47]} 7. Qc2 {[%emt 0:01:54]} f5 {[%emt 0:00:50]} 8. O-O {[%emt 0:01:18]} c6 {[%emt 0:00:36]} 9. a3 {[%emt 0:02:15]} Be7 {[%emt 0:02:32]} 10. b4 {[%emt 0:01:13]} Nd6 {[%emt 0:00:53]} 11. Ne5 {[%emt 0:03:21]} Nd7 {[%emt 0:06:53]} 12. cxd5 {[%emt 0:07:49]} cxd5 {[%emt 0:05:05]} 13. Rd1 {[%emt 0:06:30]} Qc7 {[%emt 0:06:46]} 14. Qb3 {[%emt 0:02:11]} Kh8 {[%emt 0:15:05]} 15. Bf4 {[%emt 0:03:25]} Nxe5 {[%emt 0:13:54]} 16. Bxe5 {[%emt 0:01:18]} Bd7 {[%emt 0:00:10]} 17. Rac1 {[%emt 0:10:55]} Qb6 {[%emt 0:00:32]} 18. h4 {[%emt 0:09:23]} Nc4 {[%emt 0:02:05]} 19. Bf4 {[%emt 0:00:29]} Bd6 {[%emt 0:06:30]} 20. e3 {[%emt 0:04:00]} Rac8 {[%emt 0:02:37]} 21. h5 {[%emt 0:00:56]} Bxf4 {[%emt 0:01:56]} 22. exf4 {[%emt 0:00:59]} h6 {[%emt 0:01:33]} 23. Bf1 {[%emt 0:03:35]} Rc7 {[%emt 0:00:38]} 24. Bxc4 {[%emt 0:04:20]} Rxc4 {[%emt 0:00:27]} 25. Ne2 {[%emt 0:01:17]} Rfc8 {[%emt 0:00:29]} 26. Rxc4 {[%emt 0:06:33]} Rxc4 {[%emt 0:01:40]} 27. Qe3 {[%emt 0:03:28]} Be8 {[%emt 0:02:07]} 28. g4 {[%emt 0:00:58]} Qc6 {[%emt 0:02:20]} 29. gxf5 {[%emt 0:01:31]} exf5 {[%emt 0:00:42]} 30. Ng3 {[%emt 0:00:26]} Rc3 {[%emt 0:10:44]} 31. Qe7 {[%emt 0:01:21]} Bxh5 {[%emt 0:01:42]} 32. Nxh5 {[%emt 0:04:14]} Qg6+ {[%emt 0:00:14]} 33. Ng3 {[%emt 0:00:15]} Qg4 {[%emt 0:00:06]} 34. Qf8+ {[%emt 0:00:19]} Kh7 {[%emt 0:00:13]} 35. Qxf5+ 1-0

[Event "8th Montevideo Open 2025"]
[Site "Montevideo"]
[Date "2025.02.08"]
[Round "8.9"]
[White "Silva, Juliana Figueira The"]
[Black "Dominguez, Facundo"]
[Result "1-0"]
[Annotator "RC"]
[ECO "B07"]
[WhiteElo "1850"]
[BlackElo "2159"]
[PlyCount "115"]
[EventDate "2025.02.01"]
[EventType "swiss"]
[EventCountry "URU"]
[SourceTitle "playchess.com"]
[Source "ChessBase"]
[SourceQuality "1"]
[TimeControl "5400+30"]

1. d4 {[%emt 0:00:01]} d6 {[%emt 0:06:52]} 2. Nf3 {[%emt 0:07:25]} Bg4 {[%emt 0:00:15]} 3. e4 {[%emt 0:01:21]} Nf6 {[%emt 0:00:16]} 4. Nbd2 {[%emt 0:01:38]} Nc6 {[%emt 0:00:59]} 5. c3 {[%emt 0:01:38]} g6 {[%emt 0:03:30]} 6. Be2 {[%emt 0:01:30]} Bg7 {[%emt 0:00:11]} 7. O-O {[%emt 0:01:45]} O-O {[%emt 0:00:15]} 8. h3 {[%emt 0:03:37]} Bxf3 {[%emt 0:01:08]} 9. Bxf3 {[%emt 0:00:29]} e5 {[%emt 0:01:07]} 10. Nb3 {[%emt 0:13:22]} Nd7 {[%emt 0:07:46]} 11. Re1 {[%emt 0:06:40]} Re8 {[%emt 0:10:39]} 12. Be3 {[%emt 0:04:38]} Nf6 {[%emt 0:03:49]} 13. Qc2 {[%emt 0:06:38]} Qe7 {[%emt 0:04:44]} 14. Nd2 {[%emt 0:05:04]} a5 {[%emt 0:04:24]} 15. Rac1 {[%emt 0:08:57]} Nd7 {[%emt 0:06:38]} 16. Qd3 {[%emt 0:02:55]} Bf6 {[%emt 0:02:36]} 17. Bg4 {[%emt 0:02:03]} Ncb8 {[%emt 0:03:14]} 18. Kh2 {[%emt 0:02:51]} Bg5 {[%emt 0:01:25]} 19. g3 {[%emt 0:01:53]} Bxe3 {[%emt 0:01:00]} 20. Rxe3 {[%emt 0:01:11]} Nf6 {[%emt 0:01:22]} 21. Bf3 {[%emt 0:01:34]} Nc6 {[%emt 0:01:20]} 22. Ree1 {[%emt 0:01:49]} h5 {[%emt 0:07:01]} 23. Nf1 {[%emt 0:01:29]} Nd8 {[%emt 0:01:59]} 24. d5 {[%emt 0:03:01]} b6 {[%emt 0:01:34]} 25. Ra1 {[%emt 0:00:50]} Nb7 {[%emt 0:04:20]} 26. b4 {[%emt 0:00:41]} Ra7 {[%emt 0:00:10]} 27. Rec1 {[%emt 0:01:21]} Rea8 {[%emt 0:00:28]} 28. a3 {[%emt 0:00:14]} Kg7 {[%emt 0:02:49]} 29. Ne3 {[%emt 0:06:07]} h4 {[%emt 0:01:57]} 30. g4 {[%emt 0:05:18]} Nh7 {[%emt 0:01:58]} 31. Ng2 {[%emt 0:00:59]} Qg5 {[%emt 0:01:51]} 32. Qe3 {[%emt 0:00:44]} Nd8 {[%emt 0:02:16]} 33. Be2 {[%emt 0:01:51]} Qxe3 34. Nxe3 {[%emt 0:00:38]} Nf6 {[%emt 0:04:20]} 35. Bf3 {[%emt 0:01:05]} axb4 36. cxb4 {[%emt 0:00:06]} Ne8 {[%emt 0:05:47]} 37. Rc3 {[%emt 0:01:02]} Kf8 {[%emt 0:05:53]} 38. Be2 {[%emt 0:01:58]} Ke7 {[%emt 0:00:42]} 39. Bb5 {[%emt 0:00:46]} Nf6 {[%emt 0:01:31]} 40. f3 {[%emt 0:00:54]} Nh7 {[%emt 0:01:43]} 41. Ng2 {[%emt 0:00:21]} f5 {[%emt 0:00:33]} 42. gxf5 {[%emt 0:02:22]} gxf5 {[%emt 0:00:06]} 43. Nxh4 {[%emt 0:00:04]} fxe4 {[%emt 0:00:20]} 44. fxe4 {[%emt 0:00:25]} Nf6 {[%emt 0:00:59]} 45. Nf5+ {[%emt 0:00:12]} Kf7 {[%emt 0:00:21]} 46. Rf3 {[%emt 0:00:19]} Kg6 {[%emt 0:00:44]} 47. Re3 {[%emt 0:01:37]} Nf7 {[%emt 0:00:34]} 48. Rg1+ {[%emt 0:00:09]} Ng5 {[%emt 0:00:23]} 49. h4 {[%emt 0:00:21]} Nfxe4 {[%emt 0:00:15]} 50. hxg5 {[%emt 0:00:43]} Rh8+ {[%emt 0:00:37]} 51. Kg2 {[%emt 0:00:09]} Kxf5 {[%emt 0:00:23]} 52. Bd3 {[%emt 0:00:38]} Kxg5 {[%emt 0:00:48]} 53. Bxe4 {[%emt 0:00:19]} Kf4 {[%emt 0:00:22]} 54. Rge1 {[%emt 0:00:15]} Raa8 {[%emt 0:00:33]} 55. Rf3+ {[%emt 0:00:20]} Kg4 {[%emt 0:00:30]} 56. Rg1 {[%emt 0:00:26]} Raf8 {[%emt 0:00:38]} 57. Kf2+ {[%emt 0:00:26]} Kh4 {[%emt 0:00:13]} 58. Bf5 {[%emt 0:00:14]} 1-0

[Event "8th Montevideo Open 2025"]
[Site "Montevideo"]
[Date "2025.02.08"]
[Round "8.10"]
[White "Varela, Mateo"]
[Black "Carvalho, Guillermo"]
[Result "1/2-1/2"]
[Annotator "RC"]
[ECO "B38"]
[WhiteElo "1955"]
[BlackElo "2094"]
[PlyCount "65"]
[EventDate "2025.02.01"]
[EventType "swiss"]
[EventCountry "URU"]
[SourceTitle "playchess.com"]
[Source "ChessBase"]
[SourceQuality "1"]
[TimeControl "5400+30"]

1. e4 {[%emt 0:00:03]} c5 {[%emt 0:01:00]} 2. Nf3 {[%emt 0:00:07]} Nc6 {[%emt 0:00:04]} 3. d4 {[%emt 0:00:08]} cxd4 {[%emt 0:00:09]} 4. Nxd4 {[%emt 0:00:07]} g6 {[%emt 0:00:05]} 5. c4 {[%emt 0:02:04]} Bg7 {[%emt 0:00:35]} 6. Be3 {[%emt 0:00:08]} Nf6 {[%emt 0:00:07]} 7. Nc3 {[%emt 0:00:53]} O-O {[%emt 0:00:11]} 8. Be2 {[%emt 0:01:01]} d6 {[%emt 0:00:07]} 9. O-O {[%emt 0:01:07]} Bd7 {[%emt 0:00:30]} 10. Nc2 {[%emt 0:01:52]} Qa5 {[%emt 0:06:53]} 11. h3 {[%emt 0:06:55]} Rfc8 {[%emt 0:01:28]} 12. f4 {[%emt 0:06:08]} Qd8 {[%emt 0:02:15]} 13. Qd3 {[%emt 0:07:01]} Na5 {[%emt 0:03:50]} 14. Na3 {[%emt 0:04:33]} Be6 {[%emt 0:15:30]} 15. b3 {[%emt 0:07:56]} Nc6 {[%emt 0:04:22]} 16. Nc2 {[%emt 0:04:23]} Nd7 {[%emt 0:03:51]} 17. f5 {[%emt 0:05:13]} Nde5 {[%emt 0:00:40]} 18. Qd2 {[%emt 0:00:53]} Bd7 {[%emt 0:00:09]} 19. Rad1 {[%emt 0:03:17]} Qa5 {[%emt 0:19:47]} 20. b4 {[%emt 0:11:34]} Qd8 {[%emt 0:01:09]} 21. Nd5 {[%emt 0:13:47]} Be8 {[%emt 0:05:22]} 22. Na3 {[%emt 0:03:22]} Nb8 {[%emt 0:04:04]} 23. Rc1 {[%emt 0:07:49]} Nbd7 {[%emt 0:03:36]} 24. Bg5 {[%emt 0:03:57]} Nf6 {[%emt 0:01:18]} 25. Bxf6 {[%emt 0:02:54]} Bxf6 {[%emt 0:02:36]} 26. Nxf6+ {[%emt 0:00:55]} exf6 {[%emt 0:00:10]} 27. Rcd1 {[%emt 0:00:46]} Ba4 {[%emt 0:00:22]} 28. Rc1 {[%emt 0:01:03]} Qb6+ {[%emt 0:02:15]} 29. Kh1 {[%emt 0:00:10]} g5 {[%emt 0:04:16]} 30. Nb1 {[%emt 0:03:59]} Bc6 {[%emt 0:01:37]} 31. Qxd6 {[%emt 0:01:11]} Bxe4 {[%emt 0:00:53]} 32. Qxb6 axb6 {[%emt 0:00:14]} 33. Nc3 {[%emt 0:00:10]} 1/2-1/2

[Event "8th Montevideo Open 2025"]
[Site "Montevideo"]
[Date "2025.02.08"]
[Round "8.11"]
[White "Kulik, Nicolas"]
[Black "Izquierdo, Daniel"]
[Result "0-1"]
[Annotator "RC"]
[ECO "B42"]
[WhiteElo "1922"]
[BlackElo "2069"]
[PlyCount "76"]
[EventDate "2025.02.01"]
[EventType "swiss"]
[EventCountry "URU"]
[SourceTitle "playchess.com"]
[Source "ChessBase"]
[SourceQuality "1"]
[TimeControl "5400+30"]

1. e4 {[%emt 0:00:01]} c5 {[%emt 0:14:10]} 2. Nf3 {[%emt 0:00:03]} e6 {[%emt 0:00:18]} 3. d4 {[%emt 0:00:01]} cxd4 {[%emt 0:00:04]} 4. Nxd4 {[%emt 0:00:04]} a6 {[%emt 0:00:06]} 5. Bd3 {[%emt 0:00:04]} Qb6 {[%emt 0:00:15]} 6. Nb3 {[%emt 0:01:14]} Qc7 {[%emt 0:00:22]} 7. O-O {[%emt 0:01:19]} Nf6 {[%emt 0:00:15]} 8. c4 {[%emt 0:09:22]} d6 {[%emt 0:00:18]} 9. Nc3 {[%emt 0:02:00]} Be7 {[%emt 0:00:53]} 10. Kh1 {[%emt 0:03:20]} O-O {[%emt 0:08:46]} 11. f4 {[%emt 0:03:06]} Nbd7 {[%emt 0:00:11]} 12. Be3 {[%emt 0:02:07]} b6 {[%emt 0:01:25]} 13. Rc1 {[%emt 0:01:43]} Bb7 {[%emt 0:00:51]} 14. Nd2 {[%emt 0:05:08]} Rac8 {[%emt 0:01:56]} 15. a3 {[%emt 0:04:25]} Qb8 {[%emt 0:00:51]} 16. b4 {[%emt 0:00:55]} Qa8 {[%emt 0:04:23]} 17. Qe2 {[%emt 0:07:16]} Rfe8 {[%emt 0:13:17]} 18. Bb1 {[%emt 0:05:36]} Bf8 {[%emt 0:51:09]} 19. Bg1 {[%emt 0:07:54]} g6 {[%emt 0:00:00]} 20. Rfd1 {[%emt 0:10:02]} Nh5 {[%emt 0:00:00]} 21. Be3 {[%emt 0:02:39]} f5 {[%emt 0:00:00]} 22. exf5 {[%emt 0:01:16]} exf5 {[%emt 0:00:00]} 23. Qf2 {[%emt 0:02:53]} Ndf6 {[%emt 0:00:00]} 24. Bxb6 {[%emt 0:02:24]} Bh6 {[%emt 0:00:00]} 25. Nd5 {[%emt 0:19:45]} Nxd5 {[%emt 0:00:00]} 26. cxd5 {[%emt 0:00:02]} Rxc1 {[%emt 0:00:00]} 27. Rxc1 {[%emt 0:00:02]} Nxf4 {[%emt 0:00:00]} 28. Be3 {[%emt 0:09:49]} Nh3 {[%emt 0:00:00]} 29. Qh4 {[%emt 0:00:00]} Bxe3 {[%emt 0:00:00]} 30. Rc7 {[%emt 0:00:00]} h6 {[%emt 0:00:00]} 31. Ne4 fxe4 {[%emt 0:03:14]} 32. Qxh3 {[%emt 0:00:05]} Bg5 {[%emt 0:00:21]} 33. Qc3 {[%emt 0:00:50]} Re7 {[%emt 0:00:34]} 34. Rc4 {[%emt 0:00:28]} Qf8 {[%emt 0:00:31]} 35. h4 {[%emt 0:01:33]} Qf1+ {[%emt 0:00:46]} 36. Kh2 {[%emt 0:01:04]} Bf6 {[%emt 0:01:54]} 37. Qe3 {[%emt 0:00:00]} Bxd5 {[%emt 0:01:13]} 38. Rc8+ {[%emt 0:00:23]} Kg7 {[%emt 0:00:20]} 0-1

[Event "8th Montevideo Open 2025"]
[Site "Montevideo"]
[Date "2025.02.08"]
[Round "8.12"]
[White "Meza, Anahi"]
[Black "Cayetano, Juan"]
[Result "1-0"]
[Annotator "NA RC"]
[ECO "D35"]
[WhiteElo "2038"]
[BlackElo "1940"]
[PlyCount "73"]
[EventDate "2025.02.01"]
[EventType "swiss"]
[EventCountry "URU"]
[SourceTitle "playchess.com"]
[Source "ChessBase"]
[SourceQuality "1"]
[TimeControl "5400+30"]

1. d4 {[%emt 0:00:03]} d5 {[%emt 0:00:06]} 2. c4 {[%emt 0:00:07]} e6 {[%emt 0:00:37]} 3. Nc3 {[%emt 0:00:51]} Nf6 {[%emt 0:00:14]} 4. cxd5 {[%emt 0:00:12]} exd5 {[%emt 0:00:13]} 5. Bg5 {[%emt 0:00:12]} Be7 {[%emt 0:00:23]} 6. e3 {[%emt 0:00:20]} c6 {[%emt 0:01:10]} 7. Bd3 {[%emt 0:00:13]} h6 {[%emt 0:00:30]} 8. Bh4 {[%emt 0:00:16]} Qb6 {[%emt 0:03:16]} 9. Qc2 {[%emt 0:05:05]} Be6 {[%emt 0:04:56]} 10. Nf3 {[%emt 0:12:10]} Nbd7 {[%emt 0:00:14]} 11. a3 {[%emt 0:00:46]} Rc8 {[%emt 0:02:19]} 12. O-O {[%emt 0:00:19]} Qd8 {[%emt 0:09:11]} 13. b4 {[%emt 0:04:35]} g5 {[%emt 0:06:50]} 14. Bg3 {[%emt 0:00:21]} Rg8 {[%emt 0:00:38]} 15. Ne5 {[%emt 0:08:22]} h5 {[%emt 0:02:52]} 16. f4 {[%emt 0:07:25]} gxf4 {[%emt 0:08:54]} 17. exf4 {[%emt 0:05:30]} Nxe5 {[%emt 0:01:31]} 18. dxe5 {[%emt 0:52:43]} h4 {[%emt 0:09:45]} 19. exf6 {[%emt 0:00:00]} Bxf6 {[%emt 0:12:27]} 20. Bf2 {[%emt 0:00:00]} b6 {[%emt 0:11:20]} 21. f5 {[%emt 0:00:00]} Bd7 {[%emt 0:00:21]} 22. Rae1+ {[%emt 0:00:00]} Kf8 {[%emt 0:00:13]} 23. Be3 {[%emt 0:00:00]} Bg7 {[%emt 0:05:13]} 24. Ne2 {[%emt 0:00:00]} Be5 {[%emt 0:06:05]} 25. Bh6+ {[%emt 0:00:00]} Ke7 {[%emt 0:01:14]} 26. Nf4 {[%emt 0:00:00]} Kd6 {[%emt 0:00:28]} 27. Nh5 {[%emt 0:00:00]} f6 {[%emt 0:03:25]} 28. Ng7 {[%emt 0:00:00]} Qe7 {[%emt 0:01:05]} 29. Ne6 {[%emt 0:00:00]} Rce8 {[%emt 0:03:48]} 30. Bf4 {[%emt 0:00:00]} Bxe6 {[%emt 0:00:39]} 31. fxe6 Qxe6 {[%emt 0:01:02]} 32. Bf5 {[%emt 0:00:00]} Qe7 {[%emt 0:00:29]} 33. Bh3 {[%emt 0:00:00]} Ref8 {[%emt 0:01:28]} 34. Qf5 {[%emt 0:00:00]} c5 {[%emt 0:01:45]} 35. b5 {[%emt 0:01:04]} Qg7 {[%emt 0:01:30]} 36. Rxe5 {[%emt 0:01:25]} fxe5 {[%emt 0:00:50]} 37. Bxe5+ {[%emt 0:00:46]} 1-0

[Event "8th Montevideo Open 2025"]
[Site "Montevideo"]
[Date "2025.02.08"]
[Round "8.13"]
[White "Escofet, Jaime"]
[Black "Estrada Nieto, Julian"]
[Result "0-1"]
[Annotator "RC"]
[ECO "D00"]
[WhiteElo "1951"]
[BlackElo "2195"]
[PlyCount "94"]
[EventDate "2025.02.01"]
[EventType "swiss"]
[EventCountry "URU"]
[SourceTitle "playchess.com"]
[Source "ChessBase"]
[SourceQuality "1"]
[TimeControl "5400+30"]

1. d4 {[%emt 0:00:02]} d5 {[%emt 0:06:00]} 2. Bf4 {[%emt 0:00:11]} Nf6 {[%emt 0:00:09]} 3. e3 {[%emt 0:00:16]} c5 {[%emt 0:00:07]} 4. c3 {[%emt 0:00:13]} Nc6 {[%emt 0:01:18]} 5. Nd2 {[%emt 0:00:14]} Qb6 {[%emt 0:02:01]} 6. Qb3 {[%emt 0:01:14]} c4 {[%emt 0:01:31]} 7. Qc2 {[%emt 0:01:09]} Nh5 {[%emt 0:01:17]} 8. Bg5 {[%emt 0:01:32]} h6 {[%emt 0:00:17]} 9. Bh4 {[%emt 0:00:06]} g5 {[%emt 0:00:59]} 10. Be2 {[%emt 0:00:23]} Ng7 {[%emt 0:01:39]} 11. Bg3 {[%emt 0:00:17]} Nf5 {[%emt 1:20:42]} 12. e4 {[%emt 0:05:33]} Nxg3 {[%emt 0:00:00]} 13. hxg3 {[%emt 0:00:08]} e6 {[%emt 0:00:00]} 14. Ngf3 {[%emt 0:07:09]} Bg7 {[%emt 0:00:00]} 15. e5 {[%emt 0:00:18]} Bd7 {[%emt 0:00:00]} 16. b3 {[%emt 0:00:14]} cxb3 {[%emt 0:00:00]} 17. axb3 {[%emt 0:04:03]} Rc8 {[%emt 0:00:00]} 18. Qb2 {[%emt 0:00:23]} g4 {[%emt 0:00:00]} 19. Nh4 {[%emt 0:01:49]} h5 {[%emt 0:00:00]} 20. f4 {[%emt 0:00:42]} a6 {[%emt 0:00:00]} 21. Bd3 {[%emt 0:01:13]} Rc7 {[%emt 0:00:00]} 22. f5 {[%emt 0:04:50]} Nxe5 {[%emt 0:00:00]} 23. dxe5 {[%emt 0:00:27]} Qe3+ {[%emt 0:00:00]} 24. Be2 {[%emt 0:03:16]} Bxe5 {[%emt 0:00:00]} 25. Rc1 {[%emt 0:03:13]} Bb5 {[%emt 0:00:00]} 26. Nf1 {[%emt 0:01:20]} Bxc3+ {[%emt 0:00:00]} 27. Rxc3 {[%emt 0:00:08]} Qxc3+ {[%emt 0:00:00]} 28. Qxc3 {[%emt 0:00:14]} Rxc3 {[%emt 0:00:00]} 29. Bxb5+ {[%emt 0:02:14]} axb5 {[%emt 0:00:00]} 30. fxe6 {[%emt 0:00:34]} fxe6 {[%emt 0:00:00]} 31. Ng6 {[%emt 0:00:19]} Rh6 {[%emt 0:00:00]} 32. Nf4 {[%emt 0:00:13]} Kf7 {[%emt 0:00:00]} 33. Kd2 {[%emt 0:01:00]} d4 {[%emt 0:00:00]} 34. Ne2 {[%emt 0:00:31]} Rxb3 {[%emt 0:00:00]} 35. Nxd4 {[%emt 0:00:27]} Rb1 {[%emt 0:00:00]} 36. Kc2 {[%emt 0:04:09]} Ra1 {[%emt 0:00:00]} 37. Nb3 {[%emt 0:01:13]} Ra2+ {[%emt 0:00:13]} 38. Kd3 {[%emt 0:00:09]} Rxg2 {[%emt 0:00:54]} 39. Nbd2 {[%emt 0:00:56]} e5 {[%emt 0:02:25]} 40. Ne4 {[%emt 0:00:14]} Ra6 {[%emt 0:01:17]} 41. Nfd2 {[%emt 0:04:39]} Ra3+ {[%emt 0:00:49]} 42. Kc2 {[%emt 0:00:12]} Re3 {[%emt 0:01:52]} 43. Kc1 {[%emt 0:02:30]} b4 {[%emt 0:01:19]} 44. Rxh5 {[%emt 0:00:33]} b3 {[%emt 0:02:14]} 45. Rh7+ {[%emt 0:00:33]} Kg6 {[%emt 0:00:24]} 46. Rxb7 {[%emt 0:00:08]} Re1+ {[%emt 0:00:09]} 47. Kb2 {[%emt 0:00:20]} Rxe4 {[%emt 0:00:11]} 0-1

[Event "8th Montevideo Open 2025"]
[Site "Montevideo"]
[Date "2025.02.08"]
[Round "8.14"]
[White "Brizzi, Milagros Tatiana"]
[Black "Diaz Delograsi, Francisco"]
[Result "1-0"]
[Annotator "RC"]
[ECO "B12"]
[WhiteElo "2150"]
[BlackElo "1846"]
[PlyCount "35"]
[EventDate "2025.02.01"]
[EventType "swiss"]
[EventCountry "URU"]
[SourceTitle "playchess.com"]
[Source "ChessBase"]
[SourceQuality "1"]
[TimeControl "5400+30"]

1. e4 {[%emt 0:00:00]} c6 {[%emt 0:24:16]} 2. d4 {[%emt 0:00:30]} d5 {[%emt 0:00:30]} 3. e5 {[%emt 0:00:30]} c5 {[%emt 0:00:30]} 4. c3 {[%emt 0:00:30]} Nc6 {[%emt 0:00:30]} 5. Be2 {[%emt 0:03:55]} Qb6 {[%emt 0:04:30]} 6. dxc5 {[%emt 0:00:54]} Qxc5 {[%emt 0:00:09]} 7. Be3 {[%emt 0:00:06]} Qa5 {[%emt 0:00:00]} 8. Nf3 {[%emt 0:01:46]} Bf5 {[%emt 1:04:05]} 9. Nbd2 {[%emt 1:26:49]} Qc7 {[%emt 0:00:00]} 10. O-O {[%emt 0:00:00]} Nh6 {[%emt 0:00:00]} 11. Re1 {[%emt 0:00:00]} g5 {[%emt 0:00:00]} 12. Bxg5 {[%emt 0:00:00]} Rg8 {[%emt 0:00:00]} 13. Qa4 {[%emt 0:00:00]} O-O-O {[%emt 0:00:00]} 14. Qf4 {[%emt 0:00:00]} Qd7 {[%emt 0:00:00]} 15. Bxh6 {[%emt 0:00:00]} Bxh6 {[%emt 0:00:00]} 16. Qxh6 {[%emt 0:00:00]} Rg6 {[%emt 0:00:00]} 17. Qe3 {[%emt 0:00:00]} Rdg8 {[%emt 0:00:00]} 18. g3 {[%emt 0:00:00]} 1-0

[Event "8th Montevideo Open 2025"]
[Site "Montevideo"]
[Date "2025.02.08"]
[Round "8.15"]
[White "Curi, Gabriel"]
[Black "Balseca Moreno, Diego"]
[Result "0-1"]
[Annotator "RC"]
[ECO "A45"]
[WhiteElo "2115"]
[BlackElo "2269"]
[PlyCount "96"]
[EventDate "2025.02.01"]
[EventType "swiss"]
[EventCountry "URU"]
[SourceTitle "playchess.com"]
[Source "ChessBase"]
[SourceQuality "1"]
[TimeControl "5400+30"]

1. d4 {[%emt 0:00:05]} Nf6 {[%emt 0:15:27]} 2. Nc3 {[%emt 0:00:08]} d6 {[%emt 0:05:05]} 3. Bf4 {[%emt 0:02:03]} Nh5 {[%emt 0:03:21]} 4. Bg5 {[%emt 0:01:53]} h6 {[%emt 0:00:06]} 5. Bh4 {[%emt 0:00:04]} g5 {[%emt 0:02:01]} 6. e4 {[%emt 0:04:50]} Nf4 {[%emt 0:00:07]} 7. Bg3 {[%emt 0:00:07]} e5 {[%emt 0:00:14]} 8. h4 {[%emt 0:03:46]} Bg7 {[%emt 0:02:33]} 9. dxe5 {[%emt 0:12:35]} dxe5 {[%emt 0:01:52]} 10. hxg5 {[%emt 0:00:08]} Qxd1+ {[%emt 0:00:25]} 11. Rxd1 {[%emt 0:00:10]} hxg5 {[%emt 0:00:09]} 12. Rxh8+ {[%emt 0:00:06]} Bxh8 {[%emt 0:00:01]} 13. Bxf4 {[%emt 0:00:46]} exf4 {[%emt 0:00:01]} 14. Nd5 {[%emt 0:00:09]} Be5 {[%emt 0:01:24]} 15. Nf3 {[%emt 0:00:24]} c6 {[%emt 0:00:22]} 16. Nxe5 {[%emt 0:01:22]} cxd5 {[%emt 0:00:01]} 17. Bb5+ {[%emt 0:03:40]} Ke7 {[%emt 0:13:29]} 18. exd5 {[%emt 0:00:35]} Kf6 {[%emt 0:01:44]} 19. Nf3 {[%emt 0:12:55]} Bd7 {[%emt 0:00:34]} 20. Be2 {[%emt 0:07:47]} a5 {[%emt 0:00:13]} 21. b3 {[%emt 0:01:30]} Na6 {[%emt 0:00:07]} 22. Bxa6 {[%emt 0:01:20]} Rxa6 {[%emt 0:00:01]} 23. c4 {[%emt 0:00:09]} g4 {[%emt 0:01:27]} 24. Nd4 {[%emt 0:03:42]} Ke5 {[%emt 0:06:40]} 25. Kf1 {[%emt 0:02:03]} Rh6 {[%emt 0:06:57]} 26. Kg1 {[%emt 0:00:08]} Rh8 {[%emt 0:08:57]} 27. f3 {[%emt 0:10:18]} Rg8 {[%emt 0:04:03]} 28. Kf2 {[%emt 0:01:02]} g3+ {[%emt 0:02:16]} 29. Kg1 {[%emt 0:00:16]} a4 {[%emt 0:00:06]} 30. b4 {[%emt 0:03:34]} Rc8 {[%emt 0:02:44]} 31. c5 {[%emt 0:00:22]} Kxd5 {[%emt 0:03:55]} 32. Ne2+ {[%emt 0:00:31]} Kc6 {[%emt 0:00:02]} 33. Nxf4 {[%emt 0:05:20]} Re8 {[%emt 0:00:51]} 34. Kf1 {[%emt 0:01:40]} Bf5 {[%emt 0:04:31]} 35. Ne2 {[%emt 0:03:58]} Be6 {[%emt 0:04:30]} 36. Nd4+ {[%emt 0:05:01]} Kc7 {[%emt 0:00:02]} 37. Nxe6+ {[%emt 0:00:05]} Rxe6 {[%emt 0:00:11]} 38. Re1 {[%emt 0:00:42]} Rh6 {[%emt 0:00:35]} 39. Re7+ {[%emt 0:05:42]} Kc6 {[%emt 0:00:14]} 40. Kg1 {[%emt 0:05:22]} Rh4 {[%emt 0:02:05]} 41. Re4 {[%emt 0:00:38]} Rxe4 {[%emt 0:00:01]} 42. fxe4 {[%emt 0:00:08]} a3 {[%emt 0:00:03]} 43. Kf1 {[%emt 0:02:37]} Kb5 {[%emt 0:00:04]} 44. Ke2 {[%emt 0:00:04]} Kxb4 {[%emt 0:00:04]} 45. Kf3 {[%emt 0:00:05]} Kc3 {[%emt 0:00:32]} 46. Ke3 {[%emt 0:00:04]} Kb2 {[%emt 0:00:04]} 47. Kd2 {[%emt 0:00:14]} Kxa2 {[%emt 0:00:02]} 48. Kc2 {[%emt 0:00:07]} f6 {[%emt 0:00:02]} 0-1